bitfinex/quotes_SOLUSD_20240530
["timestamp","ask_amount","ask_price","bid_price","bid_amount"]
[1717051926552,22.3843,166.97,166.88,2.2171]
[1717051926742,22.3843,166.97,166.89,0.63452114]
[1717051926929,22.3843,166.97,166.86,47.2173]
[1717051927130,22.3843,166.97,166.87,2.2172]
[1717051927327,22.3843,166.97,166.88,2.2171]
[1717051927553,22.3843,166.97,166.86,45.0]
[1717051927751,22.3843,166.97,166.87,2.2172]
[1717051928545,22.3843,166.97,166.86,45.0]
[1717051928747,23.57945526,166.97,166.85,273.73]
[1717051928961,20.71,166.95,166.85,273.73]
[1717051929130,20.71,166.92,166.85,273.73]
[1717051929336,22.9155,166.91,166.85,273.73]
[1717051929855,24.11065526,166.91,166.85,273.73]
[1717051930052,22.9155,166.91,166.85,273.73]
[1717051931045,20.71,166.89,166.85,273.73]
[1717051931242,42.7773,166.89,166.78,275.9484]
[1717051931436,42.7773,166.89,166.78,273.73]
[1717051931652,42.7773,166.89,166.78,275.9484]
[1717051931953,42.7773,166.89,166.78,273.73]
[1717051932346,42.7773,166.89,166.79,45.0]
[1717051932654,42.7773,166.89,166.79,47.2183]
[1717051932854,22.0673,166.89,166.79,47.2183]
[1717051933149,22.0673,166.89,166.79,45.0]
[1717051933544,42.7773,166.89,166.78,273.73]
[1717051933753,1.19515526,166.88,166.78,273.73]
[1717051934463,42.7773,166.89,166.78,273.73]
[1717051935335,127.80257799,166.89,166.78,273.73]
[1717051935538,127.80257799,166.89,166.79,45.0]
[1717051936885,127.80257799,166.89,166.78,273.73]
[1717051937174,1.19515526,166.88,166.78,273.73]
[1717051937753,1.19515526,166.88,166.75,273.73]
[1717051937754,20.71,166.86,166.75,273.73]
[1717051937966,1.19515526,166.85,166.75,273.73]
[1717051938551,15.9544,166.84,166.75,273.73]
[1717051939377,6.1576,166.82,166.75,273.73]
[1717051939672,6.1576,166.82,166.7,276.7314217]
[1717051939881,6.1576,166.82,166.7,274.5119217]
[1717051940092,15.9544,166.84,166.72,22.3084]
[1717051940379,6.2827,166.86,166.76,4.4374]
[1717051940679,15.129,166.88,166.72,27.3675]
[1717051940680,15.129,166.88,166.74,17.87]
[1717051940986,15.129,166.88,166.72,4.58514448]
[1717051940987,21.90515526,166.87,166.72,4.58514448]
[1717051941191,20.71,166.84,166.72,2.36594448]
[1717051941690,20.71,166.84,166.73,2.2191]
[1717051942261,20.71,166.84,166.72,2.2192]
[1717051942683,20.71,166.84,166.73,2.2191]
[1717051943362,20.71,166.84,166.73,275.9491]
[1717051943567,20.71,166.84,166.74,45.0]
[1717051944362,20.71,166.84,166.73,273.73]
[1717051944569,20.71,166.84,166.7,3.0013217]
[1717051944570,20.71,166.81,166.7,274.5119217]
[1717051945654,21.90515526,166.81,166.7,274.5119217]
[1717051945858,45.0,166.8,166.7,274.5119217]
[1717051946192,20.71,166.81,166.7,274.5119217]
[1717051946985,21.90515526,166.81,166.7,274.5119217]
[1717051947676,20.71,166.78,166.7,274.5119217]
[1717051950659,22.2031,166.79,166.7,274.5119217]
[1717051950858,20.71,166.78,166.7,274.5119217]
[1717051953170,21.90515526,166.78,166.7,274.5119217]
[1717051953469,21.90515526,166.78,166.6,287.5349]
[1717051953470,20.71,166.72,166.6,251.1787217]
[1717051953671,20.71,166.72,166.6,253.3995217]
[1717051953868,20.71,166.72,166.6,251.1787217]
[1717051954080,20.71,166.69,166.6,251.1787217]
[1717051954884,16.113,166.68,166.6,251.1787217]
[1717051955087,1.19515526,166.67,166.6,251.1787217]
[1717051955289,6.0199,166.67,166.58,0.03733565]
[1717051955503,65.71,166.66,166.58,0.03733565]
[1717051955664,1.19515526,166.65,166.58,0.03733565]
[1717051956084,22.3357,166.62,166.58,0.03733565]
[1717051956375,22.3357,166.6,166.58,0.03733565]
[1717051956576,20.71,166.63,166.58,0.03733565]
[1717051956577,22.3357,166.59,166.58,0.03733565]
[1717051960188,6.4602,166.63,166.58,0.03733565]
[1717051960391,16.6634,166.62,166.58,0.03733565]
[1717051962064,6.4602,166.63,166.58,0.03733565]
[1717051962259,15.0609,166.66,166.58,2.25843565]
[1717051962460,6.2125,166.67,166.59,2.2209]
[1717051962663,15.0609,166.7,166.62,2.2205]
[1717051962983,15.0609,166.7,166.59,311.1787217]
[1717051963287,15.0609,166.7,166.6,45.0]
[1717051964172,20.71,166.68,166.59,251.1787217]
[1717051964375,21.90515526,166.68,166.59,251.1787217]
[1717051964676,20.71,166.65,166.59,251.1787217]
[1717051965069,15.0609,166.7,166.59,251.1787217]
[1717051965266,20.71,166.68,166.59,251.1787217]
[1717051966882,20.71,166.68,166.58,0.03733565]
[1717051967078,20.71,166.65,166.58,0.03733565]
[1717051967970,15.0609,166.7,166.58,0.03733565]
[1717051967971,20.71,166.68,166.58,0.03733565]
[1717051971682,15.0609,166.7,166.58,0.03733565]
[1717051971998,20.71,166.69,166.58,0.03733565]
[1717051972585,18.33092169,166.69,166.58,251.21605735]
[1717051972789,18.33092169,166.69,166.59,45.0]
[1717051973502,92.53691158,166.7,166.59,45.0]
[1717051973680,20.71,166.69,166.59,45.0]
[1717051975681,92.53691158,166.7,166.59,47.221]
[1717051976703,92.53691158,166.7,166.59,45.0]
[1717051977386,92.53691158,166.7,166.59,47.2209]
[1717051978408,15.0609,166.7,166.59,52.4303]
[1717051978596,15.0609,166.7,166.59,303.6090217]
[1717051979401,15.0609,166.7,166.59,301.3881217]
[1717051979907,20.71,166.69,166.59,301.3881217]
[1717051980114,20.71,166.69,166.59,303.6090217]
[1717051980605,15.0609,166.7,166.59,301.3881217]
[1717051980819,15.0609,166.7,166.59,303.6090217]
[1717051981020,15.0609,166.7,166.59,301.3881217]
[1717051981820,15.0609,166.7,166.59,303.6091217]
[1717051982123,26.9225,166.71,166.6,2.2208]
[1717051982321,20.71,166.71,166.62,2.2206]
[1717051982501,77.47601158,166.73,166.61,47.2207]
[1717051982710,77.47601158,166.73,166.61,298.3994217]
[1717051985734,20.71,166.71,166.61,296.1787217]
[1717051985905,20.71,166.71,166.61,251.1787217]
[1717051987324,20.71,166.71,166.59,256.3881217]
[1717051987725,27.2144,166.68,166.58,251.21605735]
[1717051991798,15.6689,166.67,166.58,251.21605735]
[1717051992001,20.71,166.65,166.58,251.21605735]
[1717051992242,20.71,166.65,166.58,0.03733565]
[1717051995408,1.19515526,166.64,166.58,0.03733565]
[1717051995728,20.71,166.65,166.58,0.03733565]
[1717051998535,1.19515526,166.64,166.58,0.03733565]
[1717051998914,20.71,166.65,166.58,0.03733565]
[1717051999135,1.19515526,166.64,166.58,0.03733565]
[1717051999430,20.71,166.62,166.58,0.03733565]
[1717051999633,21.90515526,166.62,166.58,0.03733565]
[1717051999833,21.6118,166.59,166.58,0.03733565]
[1717052000039,42.3218,166.59,166.58,0.03733565]
[1717052001116,87.3218,166.59,166.58,0.03733565]
[1717052003613,21.6118,166.59,166.58,0.03733565]
[1717052004026,42.0917,166.63,166.58,0.03733565]
[1717052004238,83.66514934,166.67,166.58,0.03733565]
[1717052004239,83.55151158,166.67,166.58,0.03733565]
[1717052004439,20.71,166.68,166.58,0.03733565]
[1717052004639,83.48021158,166.71,166.58,2.25843565]
[1717052004840,77.47601158,166.71,166.59,2.2209]
[1717052005016,6.0042,166.75,166.6,2.3997927]
[1717052005211,77.47601158,166.76,166.64,2.2203]
[1717052005417,77.47601158,166.76,166.63,2.2204]
[1717052005628,6.0042,166.79,166.66,2.22]
[1717052005844,6.0042,166.79,166.66,45.0]
[1717052005845,26.7142,166.79,166.66,45.0]
[1717052006017,20.71,166.76,166.65,5.2094]
[1717052006331,48.289322,166.78,166.6,253.3995217]
[1717052006511,1.19515526,166.77,166.61,52.4301]
[1717052006933,1.19515526,166.76,166.61,5.2094]
[1717052007137,42.11,166.74,166.6,251.1787217]
[1717052007335,1.19515526,166.73,166.58,251.21605735]
[1717052007640,24.24,166.7,166.58,251.21605735]
[1717052007842,1.19515526,166.69,166.58,251.21605735]
[1717052008024,17.87,166.68,166.58,251.21605735]
[1717052008224,35.64865526,166.67,166.58,0.03733565]
[1717052008543,48.2613,166.66,166.58,0.03733565]
[1717052008722,64.06515526,166.65,166.58,0.03733565]
[1717052008920,1.19515526,166.64,166.58,0.03733565]
[1717052009452,45.0,166.65,166.58,0.03733565]
[1717052009825,1.19515526,166.64,166.58,0.03733565]
[1717052010442,19.06515526,166.64,166.58,0.03733565]
[1717052010619,22.2343,166.62,166.58,0.03733565]
[1717052010814,22.2343,166.59,166.58,0.03733565]
[1717052011019,15.8075,166.59,166.58,0.03733565]
[1717052011324,22.96615526,166.65,166.58,0.03733565]
[1717052011630,64.06515526,166.64,166.58,0.03733565]
[1717052012719,45.0,166.64,166.58,0.03733565]
[1717052012940,21.771,166.65,166.58,0.03733565]
[1717052016514,85.14413416,166.65,166.58,0.03733565]
[1717052016928,63.37313416,166.65,166.58,0.03733565]
[1717052018127,90.02577838,166.7,166.58,0.03733565]
[1717052018331,90.02577838,166.7,166.58,251.21605735]
[1717052020147,46.19515526,166.69,166.58,251.21605735]
[1717052020554,64.06515526,166.69,166.58,251.21605735]
[1717052022141,81.25064479,166.68,166.58,251.21605735]
[1717052022457,81.25064479,166.68,166.58,0.03733565]
[1717052026859,1.19515526,166.67,166.58,0.03733565]
[1717052027232,81.25064479,166.68,166.58,0.03733565]
[1717052028241,20.8,166.66,166.58,0.03733565]
[1717052028861,20.8,166.66,166.53,251.49797905]
[1717052029061,20.8,166.66,166.54,45.0]
[1717052031457,20.8,166.66,166.53,251.49797905]
[1717052031767,20.8,166.63,166.53,251.49797905]
[1717052033441,1.19515526,166.67,166.53,251.49797905]
[1717052033631,20.8,166.61,166.53,251.49797905]
[1717052035573,20.8,166.61,166.53,0.31925735]
[1717052036145,21.99515526,166.61,166.53,0.31925735]
[1717052036865,20.8,166.61,166.53,0.31925735]
[1717052037051,6.4985,166.57,166.53,0.31925735]
[1717052037367,27.2985,166.57,166.53,0.31925735]
[1717052037559,20.8,166.57,166.53,0.31925735]
[1717052038068,43.148,166.57,166.53,0.31925735]
[1717052038663,15.5988,166.56,166.53,0.31925735]
[1717052039660,22.2606,166.56,166.53,0.31925735]
[1717052040270,16.487,166.55,166.53,0.31925735]
[1717052040655,20.8,166.54,166.53,0.31925735]
[1717052041073,6.6618,166.56,166.53,0.31925735]
[1717052041273,27.4618,166.56,166.53,0.31925735]
[1717052041481,20.8,166.56,166.53,0.31925735]
[1717052041780,22.219,166.55,166.53,0.31925735]
[1717052041949,20.8,166.56,166.53,0.31925735]
[1717052042563,42.1571,166.59,166.53,0.31925735]
[1717052043646,20.8,166.59,166.53,0.31925735]
[1717052044844,10.8,166.59,166.53,0.31925735]
[1717052045051,81.25064479,166.62,166.53,0.31925735]
[1717052045346,20.8,166.64,166.54,5.2094]
[1717052045659,20.8,166.64,166.54,256.3881217]
[1717052046257,85.02527799,166.65,166.55,45.0]
[1717052046648,85.02527799,166.65,166.54,256.3881217]
[1717052046649,20.8,166.64,166.54,256.3881217]
[1717052046880,21.99515526,166.64,166.54,256.3881217]
[1717052047064,20.8,166.61,166.53,0.31925735]
[1717052047261,21.99515526,166.61,166.53,0.31925735]
[1717052047470,20.8,166.61,166.53,5.52865735]
[1717052048249,24.063634,166.67,166.55,17.87]
[1717052048483,21.99515526,166.69,166.59,5.2094]
[1717052048657,21.99515526,166.69,166.53,251.49797905]
[1717052048658,20.8,166.66,166.54,5.2094]
[1717052048848,20.8,166.63,166.54,256.3881217]
[1717052049272,20.8,166.6,166.54,256.3881217]
[1717052049481,20.8,166.63,166.54,256.3881217]
[1717052050551,39.856661,166.68,166.54,256.3881217]
[1717052050772,20.8,166.64,166.54,258.6097217]
[1717052051078,20.8,166.64,166.55,47.2215]
[1717052051448,20.8,166.67,166.57,17.87]
[1717052051668,20.8,166.67,166.58,45.0]
[1717052052176,20.8,166.67,166.55,251.1787217]
[1717052052367,20.8,166.67,166.56,45.0]
[1717052053264,20.8,166.67,166.56,47.2213]
[1717052053449,109.08283599,166.73,166.59,2.2209]
[1717052053778,20.8,166.71,166.6,2.2208]
[1717052053985,20.8,166.71,166.6,47.2208]
[1717052054485,20.8,166.71,166.6,45.0]
[1717052054656,24.057558,166.73,166.61,5.2094]
[1717052054856,24.057558,166.73,166.64,2.2203]
[1717052055251,24.057558,166.73,166.62,45.0]
[1717052055457,24.057558,166.73,166.63,2.2203]
[1717052055786,24.057558,166.73,166.62,47.2206]
[1717052056002,24.057558,166.73,166.62,45.0]
[1717052056167,20.8,166.71,166.61,256.3881217]
[1717052056367,20.8,166.68,166.61,256.3881217]
[1717052056699,20.8,166.65,166.61,251.1787217]
[1717052056862,20.8,166.65,166.56,256.3881217]
[1717052057261,20.8,166.71,166.56,256.3881217]
[1717052057561,20.8,166.66,166.56,258.6095217]
[1717052057764,20.8,166.66,166.56,256.3881217]
[1717052060097,20.8,166.63,166.56,256.3881217]
[1717052064998,20.8,166.63,166.56,251.1787217]
[1717052066194,20.8,166.7,166.56,251.1787217]
[1717052066388,20.8,166.66,166.56,253.4000217]
[1717052066570,20.8,166.66,166.57,47.2212]
[1717052067198,20.8,166.66,166.57,45.0]
[1717052068868,52.99988416,166.69,166.58,5.2094]
[1717052069073,20.8,166.68,166.59,45.0]
[1717052069476,20.8,166.68,166.59,47.2209]
[1717052069681,20.8,166.68,166.59,65.0909]
[1717052069881,98.27675096,166.72,166.61,2.2207]
[1717052070083,98.27675096,166.72,166.61,298.3994217]
[1717052070384,98.27675096,166.72,166.61,296.1787217]
[1717052075200,20.8,166.72,166.61,316.2694217]
[1717052075399,20.8,166.72,166.61,296.1787217]
[1717052075602,20.8,166.72,166.61,251.1787217]
[1717052076400,77.47675096,166.76,166.61,251.1787217]
[1717052076401,77.47675096,166.76,166.63,2.2204]
[1717052076592,20.8,166.73,166.62,2.2205]
[1717052076992,20.8,166.73,166.62,47.2205]
[1717052077187,20.8,166.73,166.62,45.0]
[1717052077581,20.8,166.73,166.62,47.2206]
[1717052077782,20.8,166.7,166.62,45.0]
[1717052078181,20.8,166.7,166.61,251.1787217]
[1717052079608,20.8,166.7,166.62,45.0]
[1717052079796,20.8,166.66,166.61,251.1787217]
[1717052080301,20.8,166.66,166.62,5.2094]
[1717052081111,20.8,166.66,166.62,256.3881217]
[1717052083508,20.8,166.66,166.62,251.1787217]
[1717052085410,20.8,166.66,166.58,256.3881217]
[1717052087217,20.8,166.64,166.58,256.3881217]
[1717052088896,20.8,166.65,166.58,256.3881217]
[1717052091511,20.8,166.65,166.58,251.1787217]
[1717052092005,20.8,166.62,166.58,251.1787217]
[1717052092183,16.169,166.61,166.58,251.1787217]
[1717052092389,20.8,166.59,166.58,251.1787217]
[1717052092814,20.8,166.59,166.53,251.49797905]
[1717052095226,22.6639,166.61,166.53,251.49797905]
[1717052095227,20.8,166.56,166.53,251.49797905]
[1717052095445,20.8,166.56,166.53,0.31925735]
[1717052096129,16.2602,166.55,166.53,0.31925735]
[1717052096321,27.1306,166.56,166.53,0.31925735]
[1717052096516,20.8,166.56,166.53,0.31925735]
[1717052096709,37.0602,166.56,166.53,0.31925735]
[1717052097033,43.452,166.56,166.53,0.31925735]
[1717052097528,15.6387,166.55,166.53,0.31925735]
[1717052098030,27.1918,166.56,166.53,0.31925735]
[1717052098031,20.8,166.56,166.53,0.31925735]
[1717052098241,42.8305,166.56,166.53,0.31925735]
[1717052098611,22.0305,166.56,166.53,0.31925735]
[1717052098805,36.4387,166.56,166.53,0.31925735]
[1717052100332,20.8,166.56,166.53,0.31925735]
[1717052101641,15.5553,166.59,166.53,0.31925735]
[1717052102135,20.8,166.62,166.53,0.31925735]
[1717052103119,21.7541,166.68,166.57,2.2211]
[1717052103323,20.8,166.67,166.57,253.3999217]
[1717052103527,20.8,166.67,166.57,251.1787217]
[1717052103730,20.8,166.64,166.57,251.1787217]
[1717052105715,21.7541,166.68,166.57,251.1787217]
[1717052105935,20.8,166.64,166.57,251.1787217]
[1717052106842,20.8,166.72,166.57,251.1787217]
[1717052106843,20.8,166.67,166.57,251.1787217]
[1717052107028,20.8,166.68,166.58,45.0]
[1717052107431,20.8,166.68,166.58,296.1787217]
[1717052107839,20.8,166.68,166.58,298.3997217]
[1717052108965,20.8,166.68,166.58,296.1787217]
[1717052109380,20.8,166.67,166.58,296.1787217]
[1717052109848,20.8,166.67,166.59,2.2209]
[1717052110238,20.8,166.67,166.58,296.1787217]
[1717052110453,20.8,166.64,166.58,251.1787217]
[1717052110829,83.8075444,166.71,166.58,251.1787217]
[1717052111048,20.8,166.66,166.58,251.1787217]
[1717052111645,20.8,166.63,166.58,251.1787217]
[1717052113052,20.8,166.63,166.58,256.3881217]
[1717052113646,20.8,166.63,166.58,251.1787217]
[1717052114257,83.8075444,166.71,166.58,251.1787217]
[1717052114648,20.8,166.67,166.58,251.1787217]
[1717052115246,20.8,166.67,166.58,253.3998217]
[1717052115562,83.8075444,166.71,166.6,2.2208]
[1717052115949,83.8075444,166.71,166.59,45.0]
[1717052116163,20.8,166.69,166.59,45.0]
[1717052116472,20.8,166.69,166.59,47.2209]
[1717052116647,20.8,166.69,166.6,5.2094]
[1717052116841,20.8,166.72,166.63,17.87]
[1717052117069,20.8,166.75,166.64,47.2202]
[1717052117293,20.8,166.75,166.64,296.1787217]
[1717052117566,20.8,166.75,166.65,2.2202]
[1717052117945,20.8,166.75,166.64,296.1787217]
[1717052118179,20.8,166.72,166.64,296.1787217]
[1717052120470,20.8,166.72,166.64,251.1787217]
[1717052120659,20.8,166.69,166.64,251.1787217]
[1717052121874,20.8,166.69,166.6,256.3881217]
[1717052122049,20.8,166.66,166.6,256.3881217]
[1717052122442,20.8,166.66,166.6,251.1787217]
[1717052123451,20.8,166.63,166.6,251.1787217]
[1717052124276,37.0107,166.63,166.56,251.1787217]
[1717052124461,20.8,166.6,166.56,251.1787217]
[1717052127354,6.1906,166.66,166.57,5.2094]
[1717052127578,20.8,166.64,166.58,45.0]
[1717052127968,20.8,166.64,166.58,296.1787217]
[1717052128284,20.8,166.64,166.58,251.1787217]
[1717052128863,16.1629,166.71,166.58,251.1787217]
[1717052129059,20.8,166.66,166.58,251.1787217]
[1717052129567,7.21603271,166.65,166.58,251.1787217]
[1717052129878,20.8,166.63,166.58,251.1787217]
[1717052133657,20.8,166.63,166.58,256.3881217]
[1717052134356,20.8,166.63,166.59,5.2094]
[1717052134558,20.8,166.66,166.59,5.2094]
[1717052135055,7.21613652,166.65,166.59,5.2094]
[1717052135475,20.8,166.66,166.59,5.2094]
[1717052135857,20.8,166.66,166.59,256.3881217]
[1717052136385,20.8,166.66,166.59,251.1787217]
[1717052136549,20.8,166.63,166.59,251.1787217]
[1717052139691,20.8,166.63,166.55,256.3881217]
[1717052140468,20.8,166.63,166.55,251.1787217]
[1717052140788,20.8,166.6,166.55,251.1787217]
[1717052141968,20.8,166.57,166.55,251.1787217]
[1717052142167,20.8,166.57,166.53,0.31925735]
[1717052142367,20.8,166.54,166.53,0.31925735]
[1717052142966,42.7224,166.54,166.53,0.31925735]
[1717052143183,21.9224,166.53,166.5,2.0]
[1717052143474,20.8,166.51,166.5,2.0]
[1717052143777,20.8,166.52,166.5,2.0]
[1717052144101,36.383,166.56,166.5,2.0]
[1717052144287,20.8,166.51,166.5,2.0]
[1717052144605,43.2049,166.51,166.5,2.0]
[1717052145087,20.8,166.56,166.5,2.0]
[1717052145088,43.4538,166.56,166.5,2.0]
[1717052145293,43.4538,166.51,166.5,2.0]
[1717052145473,43.4538,166.51,166.39,251.1787217]
[1717052145670,20.8,166.45,166.39,251.1787217]
[1717052145866,20.8,166.44,166.39,251.1787217]
[1717052146071,20.8,166.44,166.36,252.3102459]
[1717052146377,20.8,166.48,166.36,252.3102459]
[1717052146574,22.6538,166.51,166.36,252.3102459]
[1717052146771,20.8,166.46,166.36,252.3102459]
[1717052147100,20.8,166.48,166.36,252.3102459]
[1717052147265,88.18517761,166.49,166.36,252.3102459]
[1717052147471,20.8,166.44,166.36,252.3102459]
[1717052148286,88.18517761,166.49,166.36,252.3102459]
[1717052148499,20.8,166.46,166.36,252.3102459]
[1717052150196,88.18517761,166.49,166.36,252.3102459]
[1717052150385,20.8,166.47,166.36,252.3102459]
[1717052152075,20.8,166.44,166.36,252.3102459]
[1717052153102,20.8,166.47,166.37,45.0]
[1717052153493,20.8,166.47,166.36,252.3102459]
[1717052153682,20.8,166.47,166.37,45.0]
[1717052154005,20.8,166.47,166.36,252.3102459]
[1717052155999,20.8,166.44,166.36,252.3102459]
[1717052159298,20.8,166.44,166.36,1.1315242]
[1717052160013,20.8,166.37,166.36,1.1315242]
[1717052160177,20.8,166.37,166.23,251.5287217]
[1717052160178,15.8925,166.36,166.23,251.5287217]
[1717052160504,36.6925,166.36,166.23,251.5287217]
[1717052160688,36.6925,166.36,166.23,249.0287217]
[1717052161037,45.5304019,166.36,166.23,248.5287217]
[1717052161416,1.19515526,166.35,166.23,248.5287217]
[1717052161922,45.5304019,166.36,166.23,248.5287217]
[1717052162224,24.7304019,166.36,166.23,248.5287217]
[1717052162388,20.8,166.34,166.23,248.5287217]
[1717052162789,20.6995713,166.34,166.23,248.5287217]
[1717052163104,8.8379019,166.36,166.23,248.5287217]
[1717052163402,27.1407,166.38,166.23,248.5287217]
[1717052163403,8.8379019,166.37,166.23,248.5287217]
[1717052163606,8.84236342,166.37,166.23,248.5287217]
[1717052163817,20.8,166.36,166.23,248.5287217]
[1717052163989,29.64236342,166.36,166.23,248.5287217]
[1717052164588,29.64236342,166.36,166.23,250.7545217]
[1717052164882,8.84236342,166.36,166.23,266.3987217]
[1717052165087,8.84236342,166.37,166.25,2.2254]
[1717052165284,8.84236342,166.36,166.23,248.5287217]
[1717052165500,29.64236342,166.36,166.23,248.5287217]
[1717052165708,29.64236342,166.36,166.24,2.2256]
[1717052165912,29.64236342,166.36,166.25,2.2255]
[1717052166502,29.64236342,166.36,166.23,266.3987217]
[1717052166801,29.64236342,166.36,166.24,2.2256]
[1717052166998,29.64236342,166.36,166.23,248.5287217]
[1717052167195,8.84236342,166.35,166.23,248.5287217]
[1717052167389,8.84236342,166.35,166.23,266.3987217]
[1717052167598,8.84236342,166.36,166.23,266.3987217]
[1717052167893,8.84236342,166.36,166.28,5.2094]
[1717052168092,8.84236342,166.36,166.28,7.4345]
[1717052168296,8.84236342,166.36,166.28,5.2094]
[1717052169023,8.84236342,166.36,166.28,248.5287217]
[1717052169531,8.84236342,166.35,166.28,248.5287217]
[1717052169698,8.84236342,166.36,166.28,248.5287217]
[1717052170906,8.84236342,166.36,166.29,45.0]
[1717052171300,8.84236342,166.36,166.29,47.225]
[1717052171503,8.84236342,166.36,166.29,45.0]
[1717052171702,8.84236342,166.37,166.29,45.0]
[1717052171901,20.8,166.4,166.29,45.0]
[1717052171902,8.84236342,166.38,166.29,45.0]
[1717052172419,8.84236342,166.4,166.32,2.2246]
[1717052172598,8.84236342,166.4,166.32,248.5287217]
[1717052172799,15.8651,166.44,166.32,248.5287217]
[1717052172994,8.84205895,166.4,166.33,45.0]
[1717052173429,8.84205895,166.41,166.33,45.0]
[1717052173825,8.84205895,166.41,166.32,248.5287217]
[1717052174003,8.84205895,166.41,166.33,45.0]
[1717052174202,8.84019556,166.41,166.33,45.0]
[1717052174529,8.84019556,166.41,166.33,47.2244]
[1717052174725,8.84019556,166.41,166.34,2.2243]
[1717052174895,8.84019556,166.41,166.35,2.2241]
[1717052175095,8.84019556,166.41,166.36,5.2094]
[1717052175318,8.84019556,166.41,166.38,2.2238]
[1717052175526,8.84019556,166.44,166.39,5.2094]
[1717052175823,8.84019556,166.45,166.41,5.2094]
[1717052176543,8.84019556,166.45,166.39,248.5287217]
[1717052176753,15.3703,166.43,166.39,248.5287217]
[1717052177024,20.8,166.47,166.39,248.5287217]
[1717052177025,51.46829556,166.41,166.39,248.5287217]
[1717052177233,15.7107,166.4,166.39,248.5287217]
[1717052177527,22.0276,166.4,166.39,248.5287217]
[1717052178034,22.0276,166.4,166.28,248.5287217]
[1717052178210,8.83858246,166.37,166.28,248.5287217]
[1717052178410,8.83858246,166.35,166.28,248.5287217]
[1717052179033,8.83858246,166.36,166.28,250.7538217]
[1717052179332,8.83858246,166.37,166.29,2.2249]
[1717052179513,8.83858246,166.37,166.29,47.2249]
[1717052179912,8.83858246,166.36,166.29,45.0]
[1717052180634,8.83858246,166.37,166.29,45.0]
[1717052180934,8.83858246,166.36,166.29,45.0]
[1717052181145,8.83858246,166.35,166.28,248.5287217]
[1717052181456,8.83858246,166.35,166.29,47.225]
[1717052181636,8.83858246,166.36,166.29,47.225]
[1717052181937,8.83858246,166.35,166.29,47.2249]
[1717052182136,8.83858246,166.34,166.3,5.2094]
[1717052182337,8.83858246,166.34,166.31,45.0]
[1717052183051,88.18517761,166.44,166.31,313.6234217]
[1717052183052,8.83858246,166.35,166.31,313.6234217]
[1717052183336,8.83858246,166.34,166.31,311.3987217]
[1717052183642,8.83858246,166.35,166.32,17.87]
[1717052183817,8.83858246,166.35,166.34,5.2094]
[1717052184022,8.83858246,166.36,166.34,50.2094]
[1717052184228,8.83858246,166.36,166.35,5.2094]
[1717052184229,8.84000095,166.36,166.35,5.2094]
[1717052184430,8.84000095,166.36,166.35,298.7381217]
[1717052184631,17.34312521,166.45,166.35,298.7381217]
[1717052184826,7.22628763,166.44,166.35,298.7381217]
[1717052185229,7.22628763,166.43,166.35,298.7381217]
[1717052185435,24.56916019,166.45,166.35,293.5287217]
[1717052185618,7.22628763,166.44,166.35,293.5287217]
[1717052189145,7.22628763,166.44,166.35,248.5287217]
[1717052189529,7.22628763,166.44,166.36,45.0]
[1717052195358,7.22628763,166.44,166.36,293.5287217]
[1717052195858,24.56916019,166.44,166.36,293.5287217]
[1717052196159,24.56916019,166.43,166.36,311.3987217]
[1717052196364,7.22628763,166.42,166.36,311.3987217]
[1717052196659,17.34287256,166.48,166.36,311.3987217]
[1717052197030,17.34287256,166.48,166.37,2.2239]
[1717052197360,17.34287256,166.48,166.36,311.3987217]
[1717052197536,17.34287256,166.48,166.36,313.6227217]
[1717052197936,17.34287256,166.48,166.37,2.2239]
[1717052198147,17.34287256,166.48,166.36,313.6227217]
[1717052198457,38.18287256,166.48,166.37,2.2239]
[1717052198649,17.34287256,166.47,166.37,2.2239]